Department Family,Entity,Date Paid,Expense Type, Expense Area,Supplier,Transaction Number,AP Amount
Department of Health,East London NHS Foundation Trust,03/04/2018,Building works,Estates,SONNEMANN TOON ARCHITECTS,26036693,"24,866.20"
Department of Health,East London NHS Foundation Trust,03/04/2018,Barts Payroll SLA,Corporate Directorate,BARTS HEALTH NHS TRUST,26139934,"115,140.00"
Department of Health,East London NHS Foundation Trust,03/04/2018,Rent,Tower Hamlets Directorate,BARTS HEALTH NHS TRUST,26153710,"118,750.00"
Department of Health,East London NHS Foundation Trust,03/04/2018,Electricity,Estates,GROSVENOR FACILITIES MANAGEMENT LTD,26153761,"47,537.46"
Department of Health,East London NHS Foundation Trust,03/04/2018,Rent,Estates,BARTS HEALTH NHS TRUST,26154251,"118,750.00"
Department of Health,East London NHS Foundation Trust,03/04/2018,Legal / Prof Fees,Corporate Directorate,TPC LEADERSHIP LTD,26176110,"30,960.00"
Department of Health,East London NHS Foundation Trust,03/04/2018,Training Expenses,Corporate Directorate,NORTH-EAST LONDON LPC,26187770,"25,000.00"
Department of Health,East London NHS Foundation Trust,03/04/2018,Drug supplies,Pharmacy Department,JANSSEN CILAG LTD,26212305,"33,954.62"
Department of Health,East London NHS Foundation Trust,03/04/2018,SLA Charges,CHS,BARTS HEALTH NHS TRUST,26212812,"38,085.06"
Department of Health,East London NHS Foundation Trust,04/04/2018,Elec Records Management,RIO team,SERVELEC HEALTHCARE LTD,26278566,"29,748.00"
Department of Health,East London NHS Foundation Trust,04/04/2018,Rates,EF John Howard Estate,LONDON BOROUGH OF HACKNEY,26278662,"132,097.50"
Department of Health,East London NHS Foundation Trust,06/04/2018,SLA Charges,CHN Directorate,PATIENT FIRST SOCIAL ENTERPRISE,26287254,"61,500.00"
Department of Health,East London NHS Foundation Trust,06/04/2018,SLA Charges,CHN Directorate,PATIENT FIRST SOCIAL ENTERPRISE,26287258,"61,500.00"
Department of Health,East London NHS Foundation Trust,06/04/2018,SLA Charges,CHN Directorate,PATIENT FIRST SOCIAL ENTERPRISE,26287260,"61,500.00"
Department of Health,East London NHS Foundation Trust,06/04/2018,Insurance Costs,Corporate Directorate ,ZURICH INSURANCE PLC,26301823,"50,766.63"
Department of Health,East London NHS Foundation Trust,06/04/2018,Building works,Estates,W&I CRAIG LTD,26093688,"35,000.00"
Department of Health,East London NHS Foundation Trust,11/04/2018,Building works,Estates,FOREST GATE CONSTRUCTION CO LTD,26301163,"145,594.00"
Department of Health,East London NHS Foundation Trust,11/04/2018,Rent,Bedfordshire Directorate,CHAMBERLAIN GROUP (THE),26350112,"47,500.00"
Department of Health,East London NHS Foundation Trust,11/04/2018,Transportation costs,Trustwide,GREEN TOMATO CARS LTD,26350199,"25,966.66"
Department of Health,East London NHS Foundation Trust,11/04/2018,Computer Hardware Purch,ICT Team,COMPUTACENTER (UK) LTD,26157181,"41,642.10"
Department of Health,East London NHS Foundation Trust,11/04/2018,Computer Hardware Purch,ICT Team,TRUSTMARQUE SOLUTIONS LTD,26178131,"121,138.08"
Department of Health,East London NHS Foundation Trust,11/04/2018,Computer Hardware Purch,ICT Team,TRUSTMARQUE SOLUTIONS LTD,26178135,"52,128.22"
Department of Health,East London NHS Foundation Trust,13/04/2018,Phone Rental and Calls,ICT Team,SKYGUARD LTD,25970096,"103,198.56"
Department of Health,East London NHS Foundation Trust,13/04/2018,Rent,EF Vicarage Lane Estates,COMMUNITY HEALTH PARTNERSHIPS LTD,26276437,"86,665.97"
Department of Health,East London NHS Foundation Trust,13/04/2018,Rent,Balance Sheet,COMMUNITY HEALTH PARTNERSHIPS LTD,26276449,"84,859.58"
Department of Health,East London NHS Foundation Trust,13/04/2018,Rent,EF Vicarage Lane Estates,COMMUNITY HEALTH PARTNERSHIPS LTD,26276460,"85,699.94"
Department of Health,East London NHS Foundation Trust,13/04/2018,Rent,EF Vicarage Lane Estates,COMMUNITY HEALTH PARTNERSHIPS LTD,26278482,"85,700.18"
Department of Health,East London NHS Foundation Trust,13/04/2018,Rent,EF Vicarage Lane Estates,COMMUNITY HEALTH PARTNERSHIPS LTD,26278492,"85,699.94"
Department of Health,East London NHS Foundation Trust,13/04/2018,Rent,EF Vicarage Lane Estates,COMMUNITY HEALTH PARTNERSHIPS LTD,26278558,"85,699.94"
Department of Health,East London NHS Foundation Trust,13/04/2018,Rent,EF Centre Manor Park,COMMUNITY HEALTH PARTNERSHIPS LTD,26278578,"513,787.37"
Department of Health,East London NHS Foundation Trust,13/04/2018,Rent,EF Vicarage Lane Estates,COMMUNITY HEALTH PARTNERSHIPS LTD,26278581,"85,376.58"
Department of Health,East London NHS Foundation Trust,13/04/2018,Rent,EF Centre Manor Park,COMMUNITY HEALTH PARTNERSHIPS LTD,26278672,"-513,787.37"
Department of Health,East London NHS Foundation Trust,13/04/2018,Rent,EF East Ham Care Centre,COMMUNITY HEALTH PARTNERSHIPS LTD,26278673,"460,584.83"
Department of Health,East London NHS Foundation Trust,13/04/2018,Rent,EF Beaumont House,COMMUNITY HEALTH PARTNERSHIPS LTD,26278688,"33,022.14"
Department of Health,East London NHS Foundation Trust,13/04/2018,Rent,TH AMH CLDS,COMMUNITY HEALTH PARTNERSHIPS LTD,26278688,"38,707.69"
Department of Health,East London NHS Foundation Trust,13/04/2018,STP Contributions,Trust Board,LUTON & DUNSTABLE HOSPITAL NHS FOUNDATION TRUST,26310871,"55,671.00"
Department of Health,East London NHS Foundation Trust,13/04/2018,Electricity,Bedfordshire Directorate,LUTON & DUNSTABLE HOSPITAL NHS FOUNDATION TRUST,26350063,"39,130.80"
Department of Health,East London NHS Foundation Trust,13/04/2018,SLA Charges,Estates,HOMERTON UNIVERSITY HOSPITAL NHS FOUNDATION TRUST,26350143,"281,936.28"
Department of Health,East London NHS Foundation Trust,13/04/2018,SLA Charges,Estates,HOMERTON UNIVERSITY HOSPITAL NHS FOUNDATION TRUST,26350144,"281,936.28"
Department of Health,East London NHS Foundation Trust,13/04/2018,SLA Charges,Estates,HOMERTON UNIVERSITY HOSPITAL NHS FOUNDATION TRUST,26350145,"281,936.28"
Department of Health,East London NHS Foundation Trust,13/04/2018,SLA Charges,Estates,HOMERTON UNIVERSITY HOSPITAL NHS FOUNDATION TRUST,26350146,"281,936.28"
Department of Health,East London NHS Foundation Trust,13/04/2018,SLA Charges,Estates,HOMERTON UNIVERSITY HOSPITAL NHS FOUNDATION TRUST,26350147,"281,936.28"
Department of Health,East London NHS Foundation Trust,13/04/2018,SLA Charges,Estates,HOMERTON UNIVERSITY HOSPITAL NHS FOUNDATION TRUST,26350148,"281,936.28"
Department of Health,East London NHS Foundation Trust,18/04/2018,Computer Hardware Purch,ICT Team,CDW LTD,26278683,"-69,720.00"
Department of Health,East London NHS Foundation Trust,18/04/2018,Rent,EF York House,RENEW COUNSELLING LTD,26350157,"38,500.00"
Department of Health,East London NHS Foundation Trust,18/04/2018,Software/Licence,ICT Team,TRUSTMARQUE SOLUTIONS LTD,26227591,"112,990.57"
Department of Health,East London NHS Foundation Trust,18/04/2018,Software/Licence,ICT Team,TRUSTMARQUE SOLUTIONS LTD,26227614,"61,027.12"
Department of Health,East London NHS Foundation Trust,18/04/2018,Comp Hardware purch,ICT Team,CDW LTD,26141634,"69,720.00"
Department of Health,East London NHS Foundation Trust,20/04/2018,Electronic Reords Mgt,ICT Team,SERVELEC HEALTHCARE LTD,26255776,"24,658.00"
Department of Health,East London NHS Foundation Trust,20/04/2018,Electronic Reords Mgt,ICT Team,SERVELEC HEALTHCARE LTD,26258729,"175,785.00"
Department of Health,East London NHS Foundation Trust,20/04/2018,Comp Hardware purch,ICT Team,INSIGHT DIRECT (UK) LTD,26302997,"48,179.93"
Department of Health,East London NHS Foundation Trust,20/04/2018,Comp Hardware purch,ICT Team,INSIGHT DIRECT (UK) LTD,26314004,"63,909.12"
Department of Health,East London NHS Foundation Trust,25/04/2018,Contractual Clinical Srv,Corporate Directorate,TEAM PREVENT UK LTD,26188275,"25,910.93"
Department of Health,East London NHS Foundation Trust,25/04/2018,Building works,Estates,DRAX (UK) LTD,26289786,"28,149.33"
Department of Health,East London NHS Foundation Trust,25/04/2018,Computer Hardware Purch,ICT Team,GARTNER UK LTD,26302964,"60,960.00"
Department of Health,East London NHS Foundation Trust,25/04/2018,Photocopying costs,Coporate Directorate,XEROX (UK) LTD,26350250,"62,249.05"
Department of Health,East London NHS Foundation Trust,25/04/2018,Legal / Prof Fees,Finance Directorate,MONTAGU EVANS LLP,26409783,"22,100.00"
Department of Health,East London NHS Foundation Trust,25/04/2018,Rent,C-Cazubon Ward,LONDON BOROUGH OF NEWHAM,26462841,"38,400.00"
Department of Health,East London NHS Foundation Trust,25/04/2018,SLA Charges,Bedfordshire Directorate,RYDON MAINTENANCE LTD,26485982,"34,776.18"
Department of Health,East London NHS Foundation Trust,25/04/2018,SLA Charges,EF Wolfson House,G4S FACILITIES MANAGEMENT (UK) LTD,26486006,"87,048.88"
Department of Health,East London NHS Foundation Trust,25/04/2018,SLA Charges,EF CH and Newham Comm Facil,G4S FACILITIES MANAGEMENT (UK) LTD,26486008,"55,180.74"
Department of Health,East London NHS Foundation Trust,25/04/2018,SLA Charges,EF John Howard Facilities,G4S FACILITIES MANAGEMENT (UK) LTD,26486011,"221,906.66"
Department of Health,East London NHS Foundation Trust,25/04/2018,Computer Software/License,ICT Team,SERVELEC HEALTHCARE LTD,26486038,"29,748.00"
Department of Health,East London NHS Foundation Trust,25/04/2018,Rent,Estates,WHITECREST ESTATE AGENTS,26154253,"25,500.00"
Department of Health,East London NHS Foundation Trust,27/04/2018,SLA Charges,Bedfordshire Directorate,RYDON MAINTENANCE LTD,26486000,"55,768.18"
Department of Health,East London NHS Foundation Trust,27/04/2018,SLA Charges,Bedfordshire Directorate,THE MALL (LUTON) LTD PARTNERSHIP,26508348,"10,080.00"
Department of Health,East London NHS Foundation Trust,27/04/2018,SLA Charges,Bedfordshire Directorate,THE MALL (LUTON) LTD PARTNERSHIP,26508348,"21,420.00"
Department of Health,East London NHS Foundation Trust,27/04/2018,Rates,Bedfordshire Directorate,LUTON BOROUGH COUNCIL,26527877,"75,922.00"
Department of Health,East London NHS Foundation Trust,27/04/2018,Rates,Bedfordshire Directorate,LUTON BOROUGH COUNCIL,26527885,"35,989.00"
Department of Health,East London NHS Foundation Trust,27/04/2018,Rates,Bedfordshire Directorate,CENTRAL BEDFORDSHIRE COUNCIL,26527892,"29,580.00"
Department of Health,East London NHS Foundation Trust,27/04/2018,SLA Charges,EF CH and Newham Comm Facil,G4S FACILITIES MANAGEMENT (UK) LTD,26528105,"52,710.18"
Department of Health,East London NHS Foundation Trust,27/04/2018,SLA Charges,EF Wolfson House,G4S FACILITIES MANAGEMENT (UK) LTD,26528110,"87,048.88"
Department of Health,East London NHS Foundation Trust,27/04/2018,Lighting works,Estates,ARGENT FM LTD,26214513,"28,431.47"
Department of Health,East London NHS Foundation Trust,27/04/2018,Furniture & Fittings,Estates,WELLTEX,26227569,"41,372.00"
